bitfinex/quotes_ETHUSD_20240821
["timestamp","ask_amount","ask_price","bid_price","bid_amount"]
[1724270757078,3.75496,2663.2,2662.6,3.75568]
[1724270757393,6.15453,2662.7,2661.9,3.75664]
[1724270757546,3.7561,2662.4,2661.6,4.13393]
[1724270757954,3.75626,2662.3,2661.6,4.13382]
[1724270758175,3.75626,2662.3,2661.7,0.413382]
[1724270758494,2.3989,2662.7,2661.5,0.3768]
[1724270758646,3.75681,2661.9,2661.2,7.51526]
[1724270758847,3.75681,2661.9,2661.2,7.51521]
[1724270759085,3.75681,2661.9,2661.2,3.7576]
[1724270759647,2.4933,2662.0,2660.8,3.75822]
[1724270759883,3.75676,2661.9,2661.0,3.7579]
[1724270760097,6.24992,2662.0,2661.1,3.75778]
[1724270760400,3.75724,2661.6,2661.0,3.75789]
[1724270760548,2.4933,2662.0,2661.4,3.75738]
[1724270760901,3.75652,2662.1,2661.4,3.75736]
[1724270761047,6.18024,2662.4,2661.8,3.75684]
[1724270761494,2.4242,2662.4,2661.8,3.75675]
[1724270761696,2.4242,2662.4,2661.4,3.75731]
[1724270761697,3.75648,2662.1,2661.4,3.75731]
[1724270761910,3.75648,2662.1,2661.5,3.75726]
[1724270762199,2.4242,2662.4,2661.2,3.75765]
[1724270762200,3.75672,2661.9,2661.2,3.75765]
[1724270762549,3.7566,2662.0,2661.2,7.51518]
[1724270762796,3.7566,2662.0,2661.2,3.75758]
[1724270762962,3.7566,2662.0,2660.7,3.75838]
[1724270762963,2.4417,2661.7,2660.6,3.75849]
[1724270763303,2.4417,2661.7,2660.4,3.75879]
[1724270763599,2.4417,2661.7,2660.5,0.375879]
[1724270763600,3.7575,2661.4,2660.5,0.375879]
[1724270763799,3.7575,2661.4,2660.1,3.75915]
[1724270763800,3.75799,2661.0,2660.1,3.75914]
[1724270763953,3.75817,2660.9,2660.2,3.7591]
[1724270764153,3.75826,2660.8,2660.1,3.75924]
[1724270764505,3.75831,2660.8,2660.0,3.75939]
[1724270764790,3.758,2661.0,2660.2,3.75911]
[1724270764791,3.75801,2661.0,2660.2,3.75911]
[1724270765015,3.75814,2660.9,2660.2,3.75911]
[1724270765149,3.75829,2660.8,2660.1,0.375939]
[1724270765350,0.39288339,2660.8,2660.1,0.375939]
[1724270765598,0.39288339,2660.8,2660.2,3.75909]
[1724270765795,0.39288339,2660.8,2660.2,4.5485299]
[1724270766354,0.39288339,2660.8,2660.3,3.75896]
[1724270766550,0.39288339,2660.8,2660.2,0.7894399]
[1724270766750,0.39288339,2660.8,2660.2,4.5485299]
[1724270766953,4.15117339,2660.8,2660.2,0.7894399]
[1724270767265,3.75841,2660.7,2660.1,0.375939]
[1724270767471,0.39288339,2660.8,2659.7,0.3768]
[1724270767472,6.2093,2660.5,2659.7,0.3768]
[1724270767668,3.75908,2660.3,2659.5,4.1369]
[1724270767865,6.20932,2660.5,2659.6,4.13663]
[1724270768111,0.39288339,2660.8,2659.9,3.75943]
[1724270768256,4.15115339,2660.8,2659.9,3.75943]
[1724270768455,0.39288339,2660.8,2660.1,3.75913]
[1724270768753,3.75859,2660.6,2659.7,0.413663]
[1724270768989,3.75948,2660.0,2659.6,0.3768]
[1724270769189,2.4506,2660.3,2659.7,3.75972]
[1724270769699,2.4506,2660.3,2659.5,3.75999]
[1724270769893,2.4506,2660.3,2659.9,3.75952]
[1724270770208,3.75892,2660.4,2659.7,3.75968]
[1724270770356,3.7586,2660.6,2659.7,3.75968]
[1724270770564,7.51727,2660.6,2659.9,3.75952]
[1724270770795,3.7586,2660.6,2660.0,3.75939]
[1724270770960,2.4116,2660.7,2660.1,3.75922]
[1724270771163,0.39288339,2660.8,2660.4,3.75878]
[1724270771457,0.39288339,2660.8,2660.4,3.75873]
[1724270771684,0.39288339,2660.8,2660.5,0.375873]
[1724270771866,3.75851,2660.7,2660.0,3.75929]
[1724270772100,0.39288339,2660.8,2659.6,0.375999]
[1724270772287,3.75911,2660.2,2659.6,0.375999]
[1724270772914,3.75912,2660.2,2659.6,0.375999]
[1724270773460,3.75912,2660.2,2659.6,4.135849]
[1724270773697,3.75886,2660.4,2659.7,0.4135849]
[1724270773900,3.75886,2660.4,2659.4,4.13697]
[1724270773901,3.75886,2660.4,2659.8,3.75966]
[1724270774216,0.39288339,2660.8,2659.4,0.3768]
[1724270774217,4.15119339,2660.8,2660.1,3.75922]
[1724270774503,4.15119339,2660.8,2659.6,2.4009]
[1724270774672,3.75916,2660.2,2659.5,3.76001]
[1724270774885,3.75916,2660.2,2659.3,4.13713]
[1724270774886,2.3428,2660.1,2659.4,0.3768]
[1724270775212,2.3428,2660.1,2658.8,3.76101]
[1724270775213,3.75956,2659.9,2659.1,3.76057]
[1724270775512,3.75941,2660.0,2659.2,0.376057]
[1724270775675,3.75941,2660.0,2659.0,3.76075]
[1724270775871,3.75962,2659.9,2659.2,3.76038]
[1724270776908,3.75962,2659.9,2658.8,0.3768]
[1724270776909,3.75918,2660.2,2659.5,3.76009]
[1724270777101,3.75943,2660.0,2659.4,3.76015]
[1724270777410,3.75943,2660.0,2659.2,3.76048]
[1724270777411,3.75943,2660.0,2659.5,0.376015]
[1724270777608,3.75943,2660.0,2659.2,3.76052]
[1724270777609,3.75943,2660.0,2659.2,7.52093]
[1724270777765,3.75943,2660.0,2659.2,3.76041]
[1724270777960,3.75919,2660.2,2659.4,3.76012]
[1724270778711,7.51901,2660.0,2659.3,3.76037]
[1724270778914,3.75957,2659.9,2659.3,3.7469706]
[1724270779209,3.75976,2659.8,2658.8,0.3768]
[1724270779523,2.3024,2660.1,2659.3,3.76037]
[1724270779804,2.3024,2660.1,2659.4,3.76018]
[1724270780107,2.3024,2660.1,2658.8,0.88090579]
[1724270780108,3.75983,2659.7,2659.0,3.76071]
[1724270780312,3.75983,2659.7,2659.1,3.76065]
[1724270780515,3.75946,2660.0,2659.1,3.76065]
[1724270780664,3.75955,2659.9,2659.3,3.7603]
[1724270780862,0.39318995,2659.6,2659.3,3.7603]
[1724270781685,0.39318995,2659.6,2659.1,7.52115]
[1724270781917,0.39318995,2659.6,2659.1,8.26730468]
[1724270782065,0.39318995,2659.6,2659.1,4.50671468]
[1724270782797,0.39318995,2659.6,2659.5,3.7601]
[1724270783320,0.39318995,2659.6,2659.5,7.5202]
[1724270783628,3.7589,2660.4,2659.7,3.75979]
[1724270783819,3.75909,2660.3,2659.7,3.75979]
[1724270783969,0.39314859,2660.2,2659.7,3.75979]
[1724270784165,0.39314859,2660.2,2659.5,7.52009]
[1724270784166,7.91151859,2660.2,2659.5,7.52009]
[1724270784365,0.39314859,2660.2,2659.1,4.50675468]
[1724270784675,3.75987,2659.7,2659.1,4.50673468]
[1724270784892,3.75972,2659.8,2659.2,3.76052]
[1724270785361,3.75983,2659.7,2659.1,4.50673468]
[1724270785981,3.75983,2659.7,2659.1,8.26730468]
[1724270786231,3.75983,2659.7,2659.1,4.50672468]
[1724270786725,3.75961,2659.9,2658.8,0.3768]
[1724270786726,3.76034,2659.4,2658.8,4.13782]
[1724270786877,11.1369,2660.1,2658.5,3.76143]
[1724270786878,3.76062,2659.2,2658.5,3.76143]
[1724270787078,3.76062,2659.2,2658.3,3.76172]
[1724270787079,3.76081,2659.0,2658.3,3.76172]
[1724270787365,3.76081,2659.0,2658.4,3.76151]
[1724270787827,3.76056,2659.2,2658.6,3.76137]
[1724270788127,3.76031,2659.4,2658.7,0.752286]
[1724270788454,3.76034,2659.4,2658.7,3.76115]
[1724270788726,3.76034,2659.4,2658.8,3.76101]
[1724270789026,3.76039,2659.3,2658.7,3.76115]
[1724270789174,3.76053,2659.2,2658.5,7.52286]
[1724270789379,7.52117,2659.2,2658.5,7.52282]
[1724270789642,3.76053,2659.2,2658.6,0.752282]
[1724270789810,3.76053,2659.2,2658.6,4.513652]
[1724270790339,2.2945,2659.1,2656.4,1.16013171]
[1724270790540,2.2945,2659.1,2656.0,20.0]
[1724270790541,12.55078346,2658.6,2656.2,1.48039513]
[1724270790842,12.55078346,2658.6,2655.6,2.65655252]
[1724270790843,2.91168097,2654.4,2652.6,1.52363275]
[1724270791019,0.05,2654.6,2651.6,2.14254302]
[1724270791020,3.76902,2653.3,2651.6,1.0]
[1724270791223,13.76329,2653.8,2651.0,20.0]
[1724270791224,7.54402,2651.1,2651.0,20.0]
[1724270791562,9.34107044,2651.1,2651.0,18.11392]
[1724270791684,9.89107044,2651.1,2651.0,18.11392]
[1724270791890,9.89107044,2651.1,2651.0,15.61392]
[1724270791891,8.848422,2651.1,2651.0,15.61392]
[1724270792235,11.848422,2651.1,2651.0,15.61392]
[1724270792538,25.615432,2651.1,2651.0,14.575985]
[1724270792681,21.843422,2651.1,2651.0,14.575985]
[1724270792883,21.08902,2651.1,2651.0,13.65164121]
[1724270793087,21.08902,2651.1,2651.0,13.25169078]
[1724270793608,11.09402,2651.1,2651.0,13.25169078]
[1724270793810,3.0,2651.1,2651.0,13.25169078]
[1724270794009,6.77194,2651.2,2651.0,13.25169078]
[1724270794261,8.221074,2651.2,2651.0,13.25169078]
[1724270794417,12.995,2651.1,2651.0,9.47953078]
[1724270794618,3.0,2651.1,2651.0,9.47953078]
[1724270795653,7.54386,2651.2,2651.0,9.47953078]
[1724270795654,3.77191,2651.2,2651.0,9.47953078]
[1724270795857,7.68136,2651.6,2651.1,0.94795308]
[1724270796059,3.91,2651.6,2651.0,9.47953078]
[1724270796368,3.7719,2651.2,2651.0,9.47953078]
[1724270796656,7.54382,2651.2,2651.0,9.47953078]
[1724270796823,11.31574,2651.2,2651.0,9.47953078]
[1724270797199,20.66566,2651.2,2651.0,7.8e-07]
[1724270797340,2.066566,2651.1,2651.0,7.8e-07]
[1724270797507,2.066566,2651.1,2649.3,0.128353]
[1724270797508,3.77443,2649.4,2649.3,0.128353]
[1724270797709,17.573476,2651.1,2649.3,0.128353]
[1724270797710,3.77403,2649.7,2649.3,0.128353]
[1724270798008,3.91,2649.8,2649.3,0.128353]
[1724270798009,3.77433,2649.5,2649.3,0.128353]
[1724270798209,7.54866,2649.5,2649.3,0.128353]
[1724270798436,3.0,2649.4,2649.3,0.128353]
[1724270799259,3.3932388,2649.4,2649.3,0.128353]
[1724270799469,3.9432388,2649.4,2649.3,0.128353]
[1724270800266,3.3932388,2649.4,2649.3,0.128353]
[1724270800528,3.3932388,2649.4,2649.3,0.10566]
[1724270800529,0.3932388,2649.4,2649.3,0.10566]
[1724270801628,7.9420988,2649.4,2649.3,0.06782854]
[1724270801820,12.51073868,2649.4,2649.3,0.06782854]
[1724270802062,15.51073868,2649.4,2649.3,0.06782854]
[1724270802368,15.51073868,2649.4,2649.3,0.02998874]
[1724270802567,16.06073868,2649.4,2649.3,0.02998874]
[1724270803420,16.06073868,2649.4,2649.3,8.74e-06]
[1724270803421,19.83516868,2649.4,2649.3,8.74e-06]
[1724270804037,3.77629,2648.1,2647.0,3.3893]
[1724270804237,3.77617,2648.2,2647.0,3.3893]
[1724270804446,3.77629,2648.1,2647.0,3.3893]
[1724270804637,7.55258,2648.1,2647.0,3.3893]
[1724270805177,12.084128,2648.1,2647.0,3.3893]
[1724270805345,18.65516,2648.1,2647.0,3.3893]
[1724270805546,18.65516,2648.1,2647.7,0.068303]
[1724270805547,14.87887,2648.1,2647.7,0.068303]
[1724270805749,10.55258,2648.1,2647.7,0.068303]
[1724270805958,3.77629,2648.1,2647.7,0.068303]
[1724270806362,7.55258,2648.1,2647.7,0.068303]
[1724270807525,3.91,2648.7,2647.9,3.4739]
[1724270807763,1.18744868,2649.4,2647.7,0.068303]
[1724270807764,3.77514,2649.0,2647.8,3.4739]
[1724270807941,3.77573,2648.5,2647.8,3.4739]
[1724270808240,3.77629,2648.1,2647.8,3.4739]
[1724270808469,3.77629,2648.1,2647.7,0.068303]
[1724270808470,7.55258,2648.1,2647.7,0.068303]
[1724270808876,3.77629,2648.1,2647.7,0.068303]
[1724270809038,3.77629,2648.1,2647.8,0.00445613]
[1724270809039,7.55258,2648.1,2647.8,0.00445613]
[1724270809371,11.32887,2648.1,2647.8,0.00445613]
[1724270809580,11.32887,2648.1,2647.7,0.068303]
[1724270809581,11.33016,2647.8,2647.7,9.13e-06]
[1724270809732,15.10688,2647.8,2647.7,9.13e-06]
[1724270810073,22.4336,2647.8,2647.7,9.13e-06]
[1724270810382,22.4336,2647.8,2645.6,3.5106]
[1724270810383,12.2849,2647.8,2645.6,3.5106]
[1724270810676,3.7794,2646.0,2645.6,3.49924342]
[1724270810883,9.488,2647.3,2645.6,3.49924342]
[1724270810884,3.77894,2646.3,2645.6,3.49924342]
[1724270811028,3.77953,2645.9,2645.6,3.49924342]
[1724270811229,3.77927,2646.1,2645.6,3.49924342]
[1724270811443,3.779,2646.2,2645.6,3.49924342]
[1724270811654,3.77918,2646.1,2645.6,3.81129102]
[1724270811882,3.77846,2646.6,2645.6,3.81129102]
[1724270812095,3.77872,2646.4,2645.6,3.81129102]
[1724270812331,3.77902,2646.2,2645.6,3.79993398]
[1724270812532,3.77902,2646.2,2645.6,3.45000964]
[1724270812533,3.77937,2646.0,2645.6,3.45000964]
[1724270812821,3.0,2647.0,2645.6,3.43865111]
[1724270813036,3.77939,2646.0,2645.6,3.43865111]
[1724270813183,0.55,2646.9,2644.7,0.144015]
[1724270813184,3.78005,2645.5,2644.7,0.144015]
[1724270813382,3.78022,2645.4,2644.7,0.144015]
[1724270813584,3.78001,2645.5,2644.7,0.144015]
[1724270813897,3.0,2645.9,2644.7,0.144015]
[1724270814081,0.677923,2645.9,2644.7,0.144015]
[1724270814289,3.78021,2645.4,2644.7,0.144015]
[1724270814894,3.77999,2645.6,2644.7,0.144015]
[1724270815112,3.91,2646.3,2645.6,3.77974]
[1724270815328,3.91,2646.3,2644.7,0.144015]
[1724270815329,3.77762,2647.2,2645.1,3.78055]
[1724270815531,3.77762,2647.2,2644.7,0.844015]
[1724270815532,3.77823,2646.8,2644.7,0.844015]
[1724270815829,7.68762,2647.2,2645.6,3.77983]
[1724270815830,3.77859,2646.5,2645.6,3.77983]
[1724270815979,3.77839,2646.7,2645.6,3.77983]
[1724270816181,3.77839,2646.7,2645.7,3.77969]
[1724270816417,3.77839,2646.7,2645.1,3.348]
[1724270816418,3.77786,2647.0,2645.9,3.3614]
[1724270816738,1.22849,2647.7,2645.9,3.3614]
[1724270816739,3.77718,2647.5,2646.0,6.128]
[1724270817038,3.77546,2648.7,2646.0,6.128]
[1724270817039,3.7744,2649.5,2646.8,3.3614]
[1724270817182,3.77713,2647.6,2646.8,3.3614]
[1724270817721,3.77734,2647.4,2646.8,3.3614]
[1724270817930,3.77674,2647.8,2646.8,3.3614]
[1724270818136,3.77674,2647.8,2646.9,0.33614]
[1724270818426,3.77711,2647.6,2646.8,3.3614]
[1724270818981,3.77676,2647.8,2646.8,3.3614]
[1724270819186,3.77676,2647.8,2646.9,4.32788]
[1724270819439,3.77645,2648.0,2647.1,3.77763]
[1724270819590,0.39331979,2647.7,2646.8,3.3614]
[1724270819796,3.7771,2647.6,2646.8,3.3614]
[1724270820016,3.7774,2647.4,2646.8,3.3614]
[1724270820219,3.77708,2647.6,2646.8,3.3614]
[1724270820433,0.39331979,2647.7,2646.8,3.3614]
[1724270820734,0.39331979,2647.7,2646.8,3.69754]
[1724270820942,0.39331979,2647.7,2646.9,0.55]
[1724270821153,3.77743,2647.3,2646.8,3.3614]
[1724270821283,0.39333517,2647.6,2646.9,0.55]
[1724270821638,4.17044517,2647.6,2646.9,0.55]
[1724270821839,4.17044517,2647.6,2646.8,3.3614]
[1724270821840,0.39333517,2647.6,2646.8,3.3614]
[1724270821982,5.578,2649.1,2646.9,0.55]
[1724270822189,3.5713,2649.5,2646.9,0.55]
[1724270822190,0.39331837,2648.1,2647.0,0.7]
[1724270822517,3.77502,2649.0,2647.6,3.3614]
[1724270822518,3.77617,2648.2,2647.6,3.3614]
[1724270822724,3.77442,2649.5,2647.6,3.3614]
[1724270822887,0.39335659,2648.3,2647.7,0.55]
[1724270823243,3.77506,2649.0,2648.1,3.77627]
[1724270823383,4.16808075,2649.2,2648.2,0.377627]
[1724270823585,4.16808075,2649.2,2647.7,7.4768]
[1724270823586,3.77567,2648.6,2648.3,3.3614]
[1724270823790,3.77572,2648.5,2648.3,3.35586176]
[1724270824291,3.77586,2648.4,2648.3,3.35586176]
[1724270824502,3.77669,2647.9,2646.9,3.77791]
[1724270824704,3.77669,2647.9,2646.7,5.578]
[1724270824705,0.39330075,2649.2,2646.7,0.7]
[1724270824706,3.77633,2648.1,2646.7,0.7]
[1724270824918,3.77503,2649.0,2647.1,0.7]
[1724270824919,3.77574,2648.5,2647.1,0.7]
[1724270825243,3.77574,2648.5,2647.6,3.7769]
[1724270825561,3.77574,2648.5,2647.7,3.77676]
[1724270825742,3.77592,2648.4,2647.6,3.77688]
[1724270825919,3.77574,2648.5,2647.6,3.77688]
[1724270826266,3.39330075,2649.2,2647.1,4.47763]
[1724270826267,3.77567,2648.6,2647.1,0.7]
[1724270826546,3.77567,2648.6,2647.8,3.7767]
[1724270826747,3.77567,2648.6,2647.7,3.77683]
[1724270827067,0.39330075,2649.2,2647.8,3.4555]
[1724270827068,4.16814075,2649.2,2647.8,3.4555]
[1724270827390,3.77488,2649.1,2648.3,3.77591]
[1724270827892,3.77464,2649.3,2648.4,3.77582]
[1724270828102,3.7745,2649.4,2648.4,3.77582]
[1724270828242,3.77281,2650.6,2648.3,0.723141]
[1724270828243,0.39345069,2649.7,2648.8,3.77517]
[1724270828570,3.77281,2650.6,2648.5,3.4555]
[1724270828571,3.77459,2649.3,2648.5,3.4555]
[1724270828738,3.77322,2650.3,2648.5,3.4555]
[1724270828934,5.578,2650.6,2648.5,3.4555]
[1724270828935,0.39345902,2649.6,2648.5,7.23116]
[1724270829192,3.77474,2649.2,2648.5,3.4555]
[1724270829485,3.77516,2648.9,2648.5,3.4555]
[1724270829651,3.77492,2649.1,2648.5,3.4555]
[1724270830171,3.77462,2649.3,2648.5,3.80105]
[1724270830488,3.77469,2649.3,2648.5,3.80105]
[1724270830652,3.77435,2649.5,2648.5,3.4555]
[1724270831231,7.54878,2649.5,2648.5,3.4555]
[1724270831530,3.77435,2649.5,2648.6,3.77556]
[1724270831880,0.39342262,2649.6,2648.5,3.4555]
[1724270832079,3.77438,2649.5,2648.5,3.4555]
[1724270832336,3.77475,2649.2,2648.6,3.0]
[1724270832507,3.77468,2649.3,2648.6,3.0]
[1724270833233,0.39343537,2649.9,2648.6,3.0]
[1724270833539,3.77436,2649.5,2648.6,6.77548]
[1724270833831,3.77405,2649.7,2648.8,3.77525]
[1724270834036,3.77396,2649.8,2649.0,3.77498]
[1724270834338,4.16722537,2649.9,2648.5,3.4555]
[1724270834339,0.39343537,2649.9,2648.5,3.4555]
[1724270834485,3.33934354,2649.8,2648.5,3.4555]
[1724270834684,3.33934354,2649.8,2647.9,3.9533]
[1724270834685,3.77582,2648.5,2647.9,3.9533]
[1724270834979,3.77419,2649.6,2647.9,3.9533]
[1724270834980,3.77624,2648.2,2647.9,3.9533]
[1724270835182,3.77602,2648.3,2647.9,3.9533]
[1724270835424,3.77615,2648.2,2647.9,3.9533]
[1724270835632,3.77602,2648.3,2647.9,3.9533]
[1724270835931,3.77577,2648.5,2647.9,3.9533]
[1724270836086,3.77492,2649.1,2648.1,3.77616]
[1724270836411,3.77492,2649.1,2648.1,7.55236]
[1724270836621,6.77464,2649.3,2648.3,3.77599]
[1724270836622,3.77464,2649.3,2648.3,3.77599]
[1724270836800,3.77464,2649.3,2648.1,3.77624]
[1724270836801,3.77496,2649.1,2648.1,3.77624]
[1724270837150,3.0,2649.6,2647.9,3.9533]
[1724270837303,3.77509,2649.0,2647.9,3.9533]
[1724270837503,3.0,2649.6,2648.1,3.77622]
[1724270837716,4.11326354,2649.8,2648.1,3.77625]
[1724270837717,0.35438568,2649.5,2648.1,3.77625]
[1724270837888,3.77468,2649.3,2648.1,4.849205]
[1724270838090,3.77509,2649.0,2648.1,1.072955]
[1724270838442,3.0,2649.7,2647.9,3.9533]
[1724270838443,3.77541,2648.8,2647.9,3.9533]
[1724270838663,3.77593,2648.4,2647.9,3.9533]
[1724270838960,13.23914,2649.6,2647.9,3.9533]
[1724270838961,3.77581,2648.5,2647.9,3.9533]
[1724270839106,3.0,2649.2,2647.9,3.9533]
[1724270839107,3.77612,2648.3,2647.9,3.9533]
[1724270839451,3.77577,2648.5,2647.9,3.9533]
[1724270839748,3.77584,2648.5,2647.9,3.9533]
[1724270840136,3.77582,2648.5,2647.9,3.9533]
[1724270840514,6.77551,2648.7,2647.9,3.9533]
[1724270841040,3.77568,2648.6,2647.9,3.9533]
[1724270841351,6.77551,2648.7,2647.9,3.9533]
[1724270841352,3.77575,2648.5,2647.9,3.9533]
[1724270841649,3.0,2648.7,2647.9,3.9533]
[1724270841867,3.0,2648.7,2646.6,3.77836]
[1724270841868,3.77697,2647.7,2646.6,3.77836]
[1724270842009,3.77697,2647.7,2646.7,3.77828]
[1724270842214,3.77696,2647.7,2646.7,3.77828]
[1724270842526,3.77768,2647.2,2646.5,3.9533]
[1724270843108,4.154696,2647.6,2646.5,3.9533]
[1724270843410,3.0,2648.0,2646.5,3.9533]
[1724270843411,3.77681,2647.8,2646.8,3.77811]
[1724270843639,3.77681,2647.8,2646.5,3.9533]
[1724270843640,3.7774,2647.4,2646.5,3.9533]
[1724270843856,3.0,2648.0,2646.5,3.9533]
[1724270843857,3.77704,2647.6,2646.5,3.9533]
[1724270844057,3.77682,2647.8,2646.7,7.55637]
[1724270844207,3.0,2647.9,2646.7,1.150967]
[1724270844407,3.77694,2647.7,2646.6,3.7783]
[1724270845020,3.77644,2648.0,2647.1,3.7777]
[1724270845358,3.77644,2648.0,2647.2,3.9533]
[1724270845359,3.77658,2647.9,2647.2,3.9533]
[1724270845567,3.77659,2647.9,2647.2,3.9533]
[1724270846054,3.77581,2648.5,2647.5,3.77702]
[1724270846359,3.77522,2648.9,2647.6,3.9533]
[1724270846525,3.8869,2649.9,2647.6,3.9533]
[1724270846526,3.77586,2648.5,2647.6,3.9533]
[1724270846727,3.77525,2648.9,2647.7,3.77685]
[1724270846930,3.77544,2648.7,2647.8,0.773015]
[1724270847241,3.77525,2648.9,2647.8,0.773015]
[1724270847561,3.77552,2648.7,2647.7,3.77676]
[1724270847708,3.77552,2648.7,2647.6,3.9533]
[1724270847913,3.77435,2649.5,2647.6,3.9533]
[1724270847914,3.77594,2648.4,2647.6,3.9533]
[1724270848528,3.7753,2648.8,2647.7,3.77686]
[1724270848839,3.0,2648.9,2647.8,8.326266]
[1724270848840,6.77526,2648.9,2647.8,8.326266]
[1724270849007,3.77531,2648.8,2647.8,7.55323]
[1724270849212,6.77531,2648.8,2647.8,7.55323]
[1724270849427,6.77531,2648.8,2647.8,4.927263]
[1724270849621,3.7755,2648.7,2647.8,4.927263]
[1724270849830,3.77548,2648.7,2647.6,7.73019]
[1724270850037,3.77548,2648.7,2647.7,3.77676]
[1724270850240,7.55104,2648.7,2647.7,3.77676]
[1724270850445,7.551,2648.7,2647.7,3.77676]
[1724270850725,3.77575,2648.5,2647.6,7.73028]
[1724270850925,3.77548,2648.7,2647.7,3.77685]
[1724270851172,3.77548,2648.7,2647.6,5.026328]
[1724270851393,3.77495,2649.1,2648.2,3.79642249]
[1724270851678,3.77534,2648.8,2648.2,3.79642249]
[1724270852032,3.77517,2648.9,2648.2,3.79642249]
[1724270852230,1.055024,2648.9,2648.2,3.79642249]
[1724270852431,3.77537,2648.8,2648.2,3.79642249]
[1724270852635,3.77509,2649.0,2648.2,3.79642249]
[1724270852943,6.77526,2648.9,2648.2,3.79642249]
[1724270853124,3.0,2648.9,2648.2,3.79642249]
[1724270853653,0.39341911,2649.5,2648.3,3.776]
[1724270853654,3.77452,2649.4,2648.3,3.776]
[1724270853857,1.96031293,2650.2,2648.7,3.77543]
[1724270853858,3.77393,2649.8,2648.7,3.77543]
[1724270854152,3.77393,2649.8,2648.5,3.77562]
[1724270854153,4.16704826,2650.0,2648.5,0.7]
[1724270854355,0.39341826,2650.0,2649.2,7.86939]
[1724270854664,3.77335,2650.2,2649.2,4.881639]
[1724270855079,3.77361,2650.0,2649.2,4.0947]
[1724270855405,3.77387,2649.8,2649.2,4.0947]
[1724270855565,3.77402,2649.7,2649.2,4.02913182]
[1724270855769,5.578,2650.1,2648.5,0.59172031]
[1724270855979,0.935132,2650.0,2648.2,0.7]
[1724270856191,5.578,2650.1,2648.1,3.77622]
[1724270856192,3.77449,2649.4,2648.1,3.77622]
[1724270856393,3.77449,2649.4,2648.3,3.77587]
[1724270856596,3.77422,2649.6,2648.5,3.27559]
[1724270856958,3.77422,2649.6,2648.5,3.77558]
[1724270857317,3.7739,2649.8,2648.8,3.77528]
[1724270857496,3.7739,2649.8,2648.6,3.77548]
[1724270857677,3.77419,2649.6,2648.5,3.77565]
[1724270857876,3.77467,2649.3,2648.1,7.55243]
[1724270858080,3.77412,2649.7,2647.7,3.77676]
[1724270858276,3.7754,2648.8,2647.7,3.77676]
[1724270858606,3.7754,2648.8,2647.9,4.0947]
[1724270858960,3.0,2649.3,2647.9,4.0947]
[1724270859159,3.77503,2649.0,2647.9,4.0947]
[1724270859405,3.77503,2649.0,2648.0,3.77633]
[1724270859579,3.0,2649.4,2648.4,4.0947]
[1724270859580,6.77454,2649.4,2648.4,4.0947]
[1724270859781,3.7746,2649.3,2648.4,4.0947]
[1724270860111,3.77454,2649.4,2648.4,4.0947]
[1724270860255,3.77458,2649.3,2648.4,4.881772]
[1724270860462,3.77458,2649.3,2648.4,4.0947]
[1724270860675,6.73600864,2650.0,2648.4,4.0947]
[1724270860676,7.54957,2649.2,2648.4,4.0947]
[1724270860873,3.77501,2649.0,2648.4,4.0947]
[1724270861106,7.54957,2649.2,2648.4,4.0947]
[1724270861313,3.77474,2649.2,2648.4,4.0947]
[1724270861479,3.77509,2649.0,2648.4,4.0947]
[1724270861675,0.377474,2649.1,2648.4,4.0947]
[1724270861982,4.152444,2649.1,2648.4,4.0947]
[1724270862310,3.77516,2648.9,2648.4,4.0947]
[1724270862515,7.927424,2649.1,2648.4,4.0947]
[1724270862699,3.77502,2649.0,2648.4,4.0947]
[1724270863095,0.377474,2649.1,2648.4,4.0947]
[1724270863284,4.15800864,2649.4,2648.4,4.0947]
[1724270863285,3.77451,2649.4,2648.4,7.87051]
[1724270863486,1.15800864,2649.7,2648.4,4.0947]
[1724270863692,1.15800864,2649.7,2647.8,3.3768]
[1724270863693,1.15800864,2650.3,2648.9,4.1768]
[1724270863988,3.77295,2650.5,2649.5,7.95105]
[1724270864204,3.77303,2650.4,2649.6,3.0]
[1724270864972,3.77196,2651.2,2649.7,4.1768]
[1724270865210,3.77145,2651.5,2650.3,4.1768]
[1724270865368,3.7716,2651.4,2650.4,3.77292]
[1724270865575,3.7716,2651.4,2650.5,3.0]
[1724270865770,1.15800864,2652.0,2650.5,4.1768]
[1724270866025,2.36279198,2652.3,2650.5,4.1768]
[1724270866026,0.39348926,2652.3,2651.5,4.1768]
[1724270866333,1.96930272,2653.6,2652.2,7.94723]
[1724270866334,3.76876,2653.4,2652.2,7.94723]
[1724270866493,1.54401152,2653.8,2652.7,3.76974]
[1724270866821,2.36316327,2654.4,2652.3,3.794723]
[1724270866822,5.578,2654.7,2652.9,4.1768]
[1724270867027,3.76753,2654.3,2652.9,4.1768]
[1724270867231,3.76753,2654.3,2653.0,6.76927]
[1724270867390,3.76776,2654.1,2653.0,3.0]
[1724270867591,4.144796,2654.0,2653.0,3.0]
[1724270867929,3.76805,2653.9,2653.0,3.0]
[1724270868066,0.376776,2654.0,2653.0,3.0]
[1724270868271,0.0815823,2654.8,2653.1,3.8411]
[1724270868564,0.0815823,2654.8,2654.0,3.8411]
[1724270868839,0.0815823,2654.8,2654.1,3.0]
[1724270869124,0.0815823,2654.8,2654.2,3.76747]
[1724270869423,0.0815823,2654.8,2654.3,6.76747]
[1724270869714,0.0815823,2654.8,2654.4,3.0]
[1724270870232,0.0815823,2654.8,2654.0,3.8411]
[1724270870915,0.0815823,2654.8,2654.1,3.0]